bitfinex/quotes_BTCUSD_20251019
["timestamp","ask_amount","ask_price","bid_price","bid_amount"]
[1760864486587,0.34,106640.0,106630.0,0.0093608]
[1760864486788,5.34,106640.0,106630.0,0.0093608]
[1760864487222,5.34163452,106640.0,106630.0,0.0093608]
[1760864488490,5.34163452,106640.0,106630.0,0.0003608]
[1760864491121,5.35634396,106640.0,106630.0,0.0003608]
[1760864491519,5.01634396,106640.0,106630.0,0.76674708]
[1760864491796,0.01470944,106640.0,106630.0,0.76674708]
[1760864491940,0.01470944,106640.0,106630.0,0.3467144]
[1760864492110,0.01470944,106640.0,106630.0,0.79494305]
[1760864492520,0.02759682,106650.0,106640.0,0.22372916]
[1760864492730,0.34147642,106670.0,106650.0,0.18752226]
[1760864492935,5.85470705,106660.0,106650.0,0.28193314]
[1760864493305,5.35470705,106660.0,106650.0,0.37629314]
[1760864495209,5.47639392,106660.0,106630.0,0.0003608]
[1760864495421,5.52754688,106640.0,106630.0,0.0003608]
[1760864495608,5.67605984,106640.0,106630.0,0.0003608]
[1760864495745,5.784963,106640.0,106630.0,0.0003608]
[1760864496105,5.88100431,106640.0,106630.0,0.0003608]
[1760864496496,5.88100431,106640.0,106620.0,0.00074036]
[1760864496497,0.56374675,106630.0,106620.0,0.00074036]
[1760864496694,5.65915206,106630.0,106620.0,0.00074036]
[1760864497355,5.69099139,106630.0,106620.0,0.00074036]
[1760864497877,5.69097336,106630.0,106620.0,0.00074036]
[1760864498114,5.78737978,106630.0,106620.0,0.00074036]
[1760864498717,5.75554045,106630.0,106620.0,0.00074036]
[1760864499788,5.77025569,106630.0,106620.0,0.00074036]
[1760864500448,0.18758206,106620.0,106610.0,0.0002]
[1760864500596,5.72040444,106620.0,106610.0,0.00034993]
[1760864500800,5.83064577,106620.0,106610.0,0.00034993]
[1760864501155,5.83228088,106620.0,106610.0,0.00034993]
[1760864501791,5.83190904,106620.0,106610.0,0.00034993]
[1760864501994,5.39376005,106620.0,106610.0,0.00034993]
[1760864502199,5.62409717,106620.0,106610.0,0.00034993]
[1760864502400,5.64144938,106620.0,106610.0,0.00034993]
[1760864502654,5.62409717,106620.0,106610.0,0.00107169]
[1760864502856,5.43751511,106620.0,106610.0,0.00107169]
[1760864503083,5.09751511,106620.0,106610.0,0.00107169]
[1760864503368,5.09651511,106620.0,106610.0,0.00107169]
[1760864503536,5.43651511,106620.0,106610.0,0.00107169]
[1760864503736,5.43751511,106620.0,106610.0,0.00107169]
[1760864504174,5.34163511,106620.0,106610.0,0.00107169]
[1760864504550,5.34263511,106620.0,106610.0,0.00107169]
[1760864504730,5.341,106620.0,106610.0,0.00107169]
[1760864505770,5.34,106620.0,106610.0,0.00107169]
[1760864506184,5.341,106620.0,106610.0,0.00107169]
[1760864506394,5.001,106620.0,106610.0,0.00107169]
[1760864506615,5.001,106620.0,106610.0,0.28308223]
[1760864506801,0.001,106620.0,106610.0,0.31926451]
[1760864507011,0.00263459,106620.0,106610.0,1.16749316]
[1760864507213,0.02875706,106660.0,106630.0,0.19693272]
[1760864507389,0.34,106640.0,106630.0,0.3863036]
[1760864507742,5.0,106640.0,106630.0,0.3863036]
[1760864510058,5.0,106640.0,106630.0,0.3873036]
[1760864510965,5.0,106640.0,106630.0,0.37788538]
[1760864511297,5.0,106640.0,106630.0,0.28296538]
[1760864511495,5.0,106640.0,106630.0,0.37788538]
[1760864512110,4.79192942,106640.0,106630.0,0.09541088]
[1760864512300,4.79192942,106640.0,106630.0,0.001]
[1760864512301,5.34,106640.0,106630.0,0.001]
[1760864512499,5.34,106640.0,106630.0,0.09592]
[1760864512664,5.34,106640.0,106620.0,0.19693698]
[1760864512834,5.0,106630.0,106620.0,0.29134786]
[1760864513062,5.0,106630.0,106620.0,0.38626786]
[1760864513263,0.34,106630.0,106620.0,0.10377173]
[1760864513486,0.34,106630.0,106620.0,0.19869173]
[1760864514089,0.34,106630.0,106620.0,0.10377173]
[1760864514287,0.34,106630.0,106620.0,0.19869173]
[1760864514606,0.34,106630.0,106620.0,0.10377173]
[1760864514804,0.34,106630.0,106620.0,0.19865173]
[1760864516234,0.34,106630.0,106620.0,0.38623379]
[1760864516905,0.34,106630.0,106620.0,0.10377173]
[1760864517107,0.34,106630.0,106620.0,0.19865173]
[1760864517663,5.34,106630.0,106620.0,0.00936085]
[1760864517803,5.34,106630.0,106620.0,0.10424085]
[1760864517997,5.34163453,106630.0,106620.0,0.10424085]
[1760864518185,5.34163453,106630.0,106620.0,0.00036085]
[1760864518630,5.35634612,106630.0,106620.0,0.00036085]
[1760864518804,5.34163453,106630.0,106620.0,0.00036085]
[1760864520187,5.529199,106630.0,106620.0,0.00036085]
[1760864520471,5.52856447,106630.0,106620.0,0.00036085]
[1760864520669,5.341,106630.0,106620.0,0.00036085]
[1760864520868,5.34263479,106630.0,106620.0,0.00036085]
[1760864521265,5.35734771,106630.0,106620.0,0.00036085]
[1760864522884,5.54491218,106630.0,106620.0,0.00036085]
[1760864524005,5.54327739,106630.0,106620.0,0.00036085]
[1760864525416,5.35571292,106630.0,106620.0,0.00036085]
[1760864525631,5.54327739,106630.0,106620.0,0.00036085]
[1760864526207,5.35734773,106630.0,106620.0,0.00036085]
[1760864526608,5.34263481,106630.0,106620.0,0.00036085]
[1760864527038,5.43751481,106630.0,106620.0,0.00036085]
[1760864527231,5.34263481,106630.0,106620.0,0.00036085]
[1760864527453,5.43747481,106630.0,106620.0,0.00036085]
[1760864528947,5.4521882,106630.0,106620.0,0.00036085]
[1760864529149,5.63975267,106630.0,106620.0,0.00036085]
[1760864530304,5.65714164,106630.0,106620.0,0.00036085]
[1760864530674,5.75154806,106630.0,106620.0,0.00036085]
[1760864531090,5.65714164,106630.0,106620.0,0.00036085]
[1760864534359,5.65550683,106630.0,106620.0,0.00036085]
[1760864534540,5.68513103,106630.0,106620.0,0.00036085]
[1760864534944,5.68613103,106630.0,106620.0,0.00036085]
[1760864536662,5.67141764,106630.0,106620.0,0.00036085]
[1760864536969,5.67305265,106630.0,106620.0,0.00036085]
[1760864537170,5.76745907,106630.0,106620.0,0.00036085]
[1760864537624,5.54758845,106630.0,106620.0,0.00036085]
[1760864537824,5.36002398,106630.0,106620.0,0.00036085]
[1760864537954,5.45486398,106630.0,106620.0,0.00036085]
[1760864538394,5.28503948,106630.0,106620.0,0.00036085]
[1760864538599,5.28403948,106630.0,106620.0,0.00036085]
[1760864539111,5.62503948,106630.0,106620.0,0.00036085]
[1760864539559,5.63975321,106630.0,106620.0,0.00036085]
[1760864540425,5.6571523,106630.0,106620.0,0.00036085]
[1760864540759,5.63975321,106630.0,106620.0,0.00036085]
[1760864541174,5.45218874,106630.0,106620.0,0.00036085]
[1760864541355,5.35734874,106630.0,106620.0,0.00036085]
[1760864541558,5.01734874,106630.0,106620.0,0.09477173]
[1760864541819,5.01571373,106630.0,106620.0,0.09477173]
[1760864542025,5.35571373,106630.0,106620.0,0.28235379]
[1760864542227,5.15688987,106630.0,106620.0,0.09477173]
[1760864542430,5.35471373,106630.0,106620.0,0.09477173]
[1760864542738,5.01471373,106630.0,106620.0,0.09477173]
[1760864542878,5.35471373,106630.0,106620.0,0.09477173]
[1760864543076,5.01471373,106630.0,106620.0,0.28235379]
[1760864543291,5.01471373,106630.0,106620.0,0.09477173]
[1760864543292,5.35471373,106630.0,106620.0,0.09477173]
[1760864544642,5.35471373,106630.0,106620.0,0.28235379]
[1760864544846,5.35634828,106630.0,106620.0,0.28235379]
[1760864545726,0.35634828,106630.0,106620.0,0.28235379]
[1760864546348,0.35634828,106630.0,106620.0,0.37719379]
[1760864549669,0.01634828,106630.0,106620.0,0.41337607]
[1760864549898,5.0,106650.0,106630.0,0.19692654]
[1760864550099,0.0016344,106650.0,106630.0,0.19692654]
[1760864550301,0.3416344,106650.0,106630.0,0.19692654]
[1760864550788,0.3416344,106650.0,106640.0,0.18754688]
[1760864551525,0.3416344,106650.0,106640.0,0.28238688]
[1760864551734,0.0016344,106650.0,106640.0,0.09484]
[1760864552868,0.0016344,106650.0,106640.0,0.28238688]
[1760864553381,0.04438875,106660.0,106640.0,0.28238688]
[1760864553934,0.04438875,106660.0,106640.0,0.09484]
[1760864554779,0.34,106650.0,106640.0,0.09484]
[1760864555617,0.34,106650.0,106640.0,0.28238688]
[1760864556433,0.34163437,106650.0,106640.0,0.28238688]
[1760864557338,0.34163437,106650.0,106640.0,0.37679776]
[1760864561258,0.35634278,106650.0,106640.0,0.37679776]
[1760864564332,0.35634278,106650.0,106640.0,0.18925088]
[1760864564469,0.35634278,106650.0,106630.0,0.009]
[1760864564686,5.35634278,106650.0,106640.0,0.09472]
[1760864565297,5.35470841,106650.0,106640.0,0.09472]
[1760864567047,0.35470841,106650.0,106640.0,0.09472]
[1760864567962,0.34163442,106650.0,106640.0,0.09472]
[1760864568310,0.34163442,106650.0,106640.0,0.28226688]
[1760864571681,0.34163442,106650.0,106640.0,0.09472]
[1760864572505,0.34163442,106650.0,106640.0,0.28226688]
[1760864572706,5.34163442,106650.0,106640.0,0.28226688]
[1760864573114,0.34163442,106650.0,106640.0,0.28226688]
[1760864573313,0.34,106650.0,106640.0,0.28226688]
[1760864573884,0.34,106650.0,106640.0,0.37667776]
[1760864575437,0.34,106650.0,106640.0,0.18913088]
[1760864575615,0.34,106650.0,106640.0,0.37667776]
[1760864575822,0.34163432,106650.0,106640.0,0.37667776]
[1760864577273,0.00163432,106650.0,106640.0,0.37667776]
[1760864579221,0.01634192,106650.0,106640.0,0.37667776]
[1760864581786,0.01634192,106650.0,106640.0,0.41286004]
[1760864581998,0.0147076,106650.0,106640.0,0.86108869]
[1760864582619,0.02605297,106670.0,106660.0,0.18751171]
[1760864582818,0.01654382,106670.0,106660.0,0.37656259]
[1760864583898,0.01659374,106670.0,106660.0,0.37656259]
[1760864585904,0.35659374,106670.0,106660.0,0.37656259]
[1760864586104,0.34188709,106670.0,106660.0,0.37656259]
[1760864587667,0.00188709,106670.0,106660.0,0.37656259]
[1760864587841,0.34188709,106670.0,106660.0,0.37656259]
[1760864588855,0.00188709,106670.0,106660.0,0.37656259]
[1760864589574,5.0,106680.0,106660.0,0.37656259]
[1760864589724,5.0,106680.0,106660.0,0.37671252]
[1760864590954,5.02384891,106680.0,106670.0,0.18749414]
[1760864591146,0.02384891,106680.0,106670.0,0.28190502]
[1760864591549,5.0,106680.0,106670.0,0.28190502]
[1760864591755,0.01633961,106690.0,106670.0,0.28190502]
[1760864592013,0.01633961,106690.0,106680.0,0.28207656]
[1760864592421,0.01470552,106690.0,106680.0,0.0946]
[1760864593281,0.03897741,106690.0,106680.0,0.0946]
[1760864593486,0.01470552,106690.0,106680.0,0.0946]
[1760864593870,5.01470552,106690.0,106680.0,0.0946]
[1760864594839,5.0,106680.0,106670.0,0.09441088]
[1760864595256,5.0,106680.0,106670.0,0.18897088]
[1760864595991,5.0,106680.0,106670.0,0.37646502]
[1760864596586,5.00036056,106680.0,106670.0,0.37646502]
[1760864596920,0.00036056,106680.0,106670.0,0.37646502]
[1760864597393,0.00036056,106680.0,106670.0,0.18897088]
[1760864599300,5.00036056,106680.0,106670.0,0.18897088]
[1760864601628,0.00036056,106680.0,106670.0,0.18897088]
[1760864602434,0.00036056,106680.0,106670.0,0.37646502]
[1760864605816,0.00036056,106680.0,106670.0,0.18897088]
[1760864606032,0.00036056,106680.0,106670.0,0.37646502]
[1760864607615,0.00036056,106680.0,106670.0,0.18897088]
[1760864608704,5.18783712,106680.0,106670.0,0.09456]
[1760864608904,5.34,106670.0,106660.0,0.00014993]
[1760864609076,5.52749414,106670.0,106660.0,0.00014993]
[1760864610590,5.54494517,106670.0,106660.0,0.00014993]
[1760864611016,5.57284919,106670.0,106660.0,0.00014993]
[1760864611544,5.57184919,106670.0,106660.0,0.00014993]
[1760864611745,5.34,106670.0,106660.0,0.00014993]
[1760864611946,5.45022883,106670.0,106660.0,0.00014993]
[1760864612133,5.35734321,106670.0,106660.0,0.00014993]
[1760864612286,5.45186321,106670.0,106660.0,0.00014993]
[1760864613168,5.45086321,106670.0,106660.0,0.00014993]
[1760864613577,5.63935735,106670.0,106660.0,0.00014993]
[1760864613747,5.45186321,106670.0,106660.0,0.00014993]
[1760864613969,5.44922883,106670.0,106660.0,0.00014993]
[1760864614399,5.45022883,106670.0,106660.0,0.00014993]
[1760864616170,5.45186316,106670.0,106660.0,0.00014993]
[1760864616377,5.43715433,106670.0,106660.0,0.00014993]
[1760864616973,5.34263433,106670.0,106660.0,0.00014993]
[1760864617188,5.43715433,106670.0,106660.0,0.00014993]
[1760864617792,5.34263433,106670.0,106660.0,0.00014993]
[1760864619396,5.38553945,106670.0,106660.0,0.00014993]
[1760864619985,5.04553945,106670.0,106660.0,0.00014993]
[1760864622220,5.38553945,106670.0,106660.0,0.00014993]
[1760864626549,5.38390512,106670.0,106660.0,0.00014993]
[1760864626925,5.36919815,106670.0,106660.0,0.00014993]
[1760864628936,5.37083241,106670.0,106660.0,0.00014993]
[1760864629770,5.38553965,106670.0,106660.0,0.00014993]
[1760864629969,5.57303379,106670.0,106660.0,0.00014993]
[1760864631910,5.57139953,106670.0,106660.0,0.00014993]
[1760864633168,5.5887603,106670.0,106660.0,0.00014993]
[1760864634894,5.59039475,106670.0,106660.0,0.00014993]
[1760864635108,5.58939475,106670.0,106660.0,0.00014993]
[1760864635453,5.59039475,106670.0,106660.0,0.00014993]
[1760864636051,5.57568751,106670.0,106660.0,0.00014993]
[1760864640598,5.59039672,106670.0,106660.0,0.00014993]
[1760864641006,5.61730074,106670.0,106660.0,0.00014993]
[1760864641447,5.71170716,106670.0,106660.0,0.00014993]
[1760864641799,5.61730074,106670.0,106660.0,0.00014993]
[1760864642125,5.49574813,106670.0,106660.0,0.00014993]
[1760864642261,5.68324227,106670.0,106660.0,0.00014993]
[1760864642672,5.58876227,106670.0,106660.0,0.00014993]
[1760864642874,5.68224227,106670.0,106660.0,0.00014993]
[1760864643071,5.40026813,106670.0,106660.0,0.00014993]
[1760864643331,5.68324227,106670.0,106660.0,0.00014993]
[1760864643531,5.49574813,106670.0,106660.0,0.00014993]
[1760864644777,5.68324227,106670.0,106660.0,0.00014993]
[1760864646218,5.68487664,106670.0,106660.0,0.00014993]
[1760864647121,5.67016743,106670.0,106660.0,0.00014993]
[1760864647336,5.79147787,106670.0,106660.0,0.00014993]
[1760864647563,5.69707145,106670.0,106660.0,0.00014993]
[1760864647760,5.67016743,106670.0,106660.0,0.00014993]
[1760864650058,5.68487682,106670.0,106660.0,0.00014993]
[1760864652676,5.66751605,106670.0,106660.0,0.00014993]
[1760864652875,5.68490281,106670.0,106660.0,0.00014993]
[1760864653662,5.80621325,106670.0,106660.0,0.00014993]
[1760864654280,5.80457888,106670.0,106660.0,0.00014993]
[1760864655826,5.84076116,106670.0,106660.0,0.00014993]
[1760864656044,5.82605177,106670.0,106660.0,0.00014993]
[1760864656796,5.8276864,106670.0,106660.0,0.00014993]
[1760864657005,5.62221487,106670.0,106660.0,0.00014993]
[1760864657411,5.62121487,106670.0,106660.0,0.00014993]
[1760864657868,5.62321487,106670.0,106660.0,0.00014993]
[1760864659073,5.63792597,106670.0,106660.0,0.00014993]
[1760864660252,5.65792595,106670.0,106660.0,0.00014993]
[1760864661250,5.65592595,106670.0,106660.0,0.00014993]
[1760864661725,5.65792595,106670.0,106660.0,0.00014993]
[1760864661927,5.65629132,106670.0,106660.0,0.00014993]
[1760864663440,0.52754688,106640.0,106630.0,0.00183753]
[1760864663676,5.50595086,106640.0,106630.0,0.00183753]
[1760864664042,5.52442634,106640.0,106630.0,0.00183753]
[1760864664652,5.52542634,106640.0,106630.0,0.00183753]
[1760864664852,5.52706122,106640.0,106630.0,0.00183753]
[1760864666291,5.51234743,106640.0,106630.0,0.00183753]
[1760864667615,5.51225852,106640.0,106630.0,0.00183753]
[1760864668242,5.41777852,106640.0,106630.0,0.00183753]
[1760864668438,5.51229852,106640.0,106630.0,0.00183753]
[1760864668616,5.44078939,106640.0,106630.0,0.00183753]
[1760864669249,5.45550296,106640.0,106630.0,0.00183753]
[1760864669622,5.36098296,106640.0,106630.0,0.00183753]
[1760864669861,5.45550296,106640.0,106630.0,0.00183753]
[1760864670999,5.54990938,106640.0,106630.0,0.00183753]
[1760864671823,5.45550296,106640.0,106630.0,0.00183753]
[1760864674236,5.48240698,106640.0,106630.0,0.00183753]
[1760864676550,5.51858926,106640.0,106630.0,0.00183753]
[1760864677537,5.51694295,106640.0,106630.0,0.00183753]
[1760864677694,5.51594295,106640.0,106630.0,0.00183753]
[1760864677912,5.61034937,106640.0,106630.0,0.00183753]
[1760864678403,5.63034935,106640.0,106630.0,0.00183753]
[1760864678610,5.62938074,106640.0,106630.0,0.00183753]
[1760864678824,5.63034935,106640.0,106630.0,0.00183753]
[1760864679213,5.44142293,106640.0,106630.0,0.00183753]
[1760864679379,5.53594293,106640.0,106630.0,0.00183753]
[1760864679582,5.52594294,106640.0,106630.0,0.00183753]
[1760864679814,5.53857814,106640.0,106630.0,0.00183753]
[1760864681792,5.43405815,106640.0,106630.0,0.00183753]
[1760864682031,5.61298458,106640.0,106630.0,0.00183753]
[1760864682796,5.61134937,106640.0,106630.0,0.00183753]
[1760864685386,5.62134936,106640.0,106630.0,0.00183753]
[1760864685565,5.62298459,106640.0,106630.0,0.00183753]
[1760864686001,5.61827101,106640.0,106630.0,0.00183753]
[1760864687281,5.35829281,106620.0,106610.0,0.0002]
[1760864687629,5.59140967,106620.0,106610.0,0.0002]
[1760864688038,5.59680766,106620.0,106610.0,0.0002]
[1760864688875,5.62152593,106620.0,106610.0,0.0002]
[1760864690064,5.62352593,106620.0,106610.0,0.0002]
[1760864692965,5.72241593,106620.0,106610.0,0.0002]
[1760864693185,5.62352593,106620.0,106610.0,0.00092177]
[1760864694650,5.62189055,106620.0,106610.0,0.00092177]
[1760864694811,5.62352603,106620.0,106610.0,0.00092177]
[1760864703500,5.57522812,106610.0,106600.0,0.0012]
[1760864703675,5.70492759,106610.0,106600.0,0.0012]
[1760864703857,5.6949276,106610.0,106600.0,0.0012]
[1760864704060,5.70869091,106610.0,106600.0,0.0012]
[1760864705681,5.70969091,106610.0,106600.0,0.0012]
[1760864706728,5.71132663,106610.0,106600.0,0.0012]
[1760864709055,5.71132663,106610.0,106600.0,0.00156095]
[1760864709678,5.72604633,106610.0,106600.0,0.00156095]
[1760864712636,5.76222861,106610.0,106600.0,0.00156095]
[1760864713041,5.33214572,106600.0,106590.0,0.0002]
[1760864713219,5.56530258,106600.0,106590.0,0.0002]
[1760864713438,5.40524961,106590.0,106580.0,0.0002]
[1760864713650,5.42253603,106590.0,106580.0,0.0002]
[1760864714013,5.42889441,106590.0,106580.0,0.0002]
[1760864714216,5.44265843,106590.0,106580.0,0.00024992]
[1760864714432,5.53706485,106590.0,106580.0,0.00024992]
[1760864714649,5.53542892,106590.0,106580.0,0.00024992]
[1760864715055,5.52070648,106590.0,106580.0,0.00024992]
[1760864715861,5.52270648,106590.0,106580.0,0.00024992]
[1760864716224,5.52270648,106590.0,106560.0,0.0002]
[1760864716471,5.42674092,106580.0,106570.0,0.00034998]
[1760864716732,5.56533778,106580.0,106570.0,0.00034998]
[1760864717107,5.57073815,106580.0,106570.0,0.00034998]
[1760864717511,5.59546188,106580.0,106570.0,0.00034998]
[1760864717871,5.83856188,106580.0,106570.0,0.00034998]
[1760864718078,0.53767006,106570.0,106560.0,0.0002]
[1760864718372,5.45189801,106570.0,106560.0,0.00035005]
[1760864718800,5.704998,106570.0,106560.0,0.00035005]
[1760864719182,5.704998,106570.0,106560.0,0.00179446]
[1760864719384,5.705998,106570.0,106560.0,0.00179446]
[1760864720027,5.66909399,106570.0,106560.0,0.00179446]
[1760864720259,5.76365399,106570.0,106560.0,0.00179446]
[1760864720498,5.77365398,106570.0,106560.0,0.00179446]
[1760864720727,5.76365399,106570.0,106560.0,0.00179446]
[1760864720965,5.77265398,106570.0,106560.0,0.00179446]
[1760864721191,5.79155801,106570.0,106560.0,0.00179446]
[1760864721441,5.81628346,106570.0,106560.0,0.00179446]
[1760864721995,5.0,106540.0,106530.0,0.0002]
[1760864722223,5.77015804,106540.0,106530.0,0.00034977]
[1760864722453,5.79454771,106540.0,106530.0,0.00034977]
[1760864722692,5.79994936,106540.0,106530.0,0.00034977]
[1760864722951,5.81304045,106540.0,106530.0,0.00034977]
[1760864723809,5.58789175,106540.0,106530.0,0.00034977]
[1760864724020,5.40016883,106540.0,106530.0,0.00034977]
[1760864724251,5.49472883,106540.0,106530.0,0.00034977]
[1760864724436,5.68245175,106540.0,106530.0,0.00034977]
[1760864725052,5.66772438,106540.0,106530.0,0.00034977]
[1760864725256,5.765767,106540.0,106530.0,0.00034977]
[1760864727648,5.765767,106540.0,106530.0,0.00143358]
[1760864728097,5.78049392,106540.0,106530.0,0.00143358]
[1760864728376,5.7804467,106540.0,106530.0,0.00143358]
[1760864730376,5.48782733,106540.0,106530.0,0.00143358]
[1760864732525,5.20390821,106540.0,106530.0,0.00143358]
[1760864732738,5.39163113,106540.0,106530.0,0.00143358]
[1760864732913,5.48623113,106540.0,106530.0,0.00143358]
[1760864734970,5.48626203,106540.0,106530.0,0.00143358]
[1760864735192,5.5823047,106540.0,106530.0,0.00143358]
[1760864735795,5.4877047,106540.0,106530.0,0.00143358]
[1760864736001,5.5823047,106540.0,106530.0,0.00143358]
[1760864737333,5.56757778,106540.0,106530.0,0.00143358]
[1760864737534,5.60376006,106540.0,106530.0,0.00143358]
[1760864738813,5.63067144,106540.0,106530.0,0.00143358]
[1760864739426,5.64067143,106540.0,106530.0,0.00143358]
[1760864740246,5.65540011,106540.0,106530.0,0.00143358]
[1760864740451,5.65340011,106540.0,106530.0,0.00143358]
[1760864740878,5.56080011,106540.0,106530.0,0.00143358]
[1760864741044,5.65540011,106540.0,106530.0,0.00143358]
[1760864742069,5.66376385,106540.0,106530.0,0.00143358]
[1760864743774,5.66376385,106540.0,106530.0,1e-08]
[1760864745226,5.33952758,106530.0,106520.0,0.0002]
[1760864745428,5.33952758,106530.0,106520.0,1e-08]
[1760864745429,5.52446215,106530.0,106520.0,1e-08]
[1760864745584,5.52440755,106530.0,106520.0,1e-08]
[1760864745788,5.76882958,106530.0,106520.0,1e-08]
[1760864746011,5.55265567,106530.0,106520.0,1e-08]
[1760864746273,5.79575567,106530.0,106520.0,1e-08]
[1760864746633,5.55265567,106530.0,106520.0,1e-08]
[1760864747032,5.55265567,106530.0,106510.0,0.00067212]
[1760864747033,5.40265357,106520.0,106510.0,0.00067212]
[1760864747402,5.60893009,106520.0,106510.0,0.00067212]
[1760864747733,5.61056684,106520.0,106510.0,0.00067212]
[1760864748388,5.63881541,106520.0,106510.0,0.00067212]
[1760864748735,5.65354681,106520.0,106510.0,0.00067212]
[1760864749214,5.53202072,106520.0,106510.0,0.00067212]
[1760864749493,5.62866072,106520.0,106510.0,0.00067212]
[1760864750326,5.62866072,106520.0,106500.0,10.1083703]
[1760864750327,5.32956284,106510.0,106500.0,10.1083703]
[1760864750466,5.42234198,106510.0,106500.0,10.1083703]
[1760864752408,5.42334198,106510.0,106500.0,10.1083703]
[1760864752629,5.42334198,106510.0,106500.0,10.10945458]
[1760864753093,5.44251294,106510.0,106500.0,10.10945458]
[1760864753227,5.44251294,106510.0,106500.0,10.10937458]
[1760864756013,5.47075861,106510.0,106500.0,10.10937458]
[1760864760034,5.47075861,106510.0,106500.0,10.10941458]
[1760864761771,5.47075861,106510.0,106500.0,10.09468334]
[1760864761909,5.56516503,106510.0,106500.0,10.09468334]
[1760864765693,5.47075861,106510.0,106500.0,10.09468334]
[1760864766834,5.47075861,106510.0,106500.0,9.77779734]
[1760864767784,5.47075861,106510.0,106500.0,9.27779734]
[1760864768103,5.50694089,106510.0,106500.0,8.783777]
[1760864768309,5.50694089,106510.0,106450.0,0.1200069]
[1760864768310,1.34474998,106460.0,106450.0,0.1200069]
[1760864768511,1.45670008,106460.0,106450.0,0.1200069]
[1760864768956,1.20241209,106460.0,106450.0,0.1200069]
[1760864769117,1.39027607,106460.0,106450.0,0.1200069]
[1760864769316,1.29713209,106460.0,106450.0,0.1200069]
[1760864769517,1.29728161,106460.0,106450.0,0.13200759]
[1760864769738,1.20256161,106460.0,106450.0,0.13200759]
[1760864769941,1.22349851,106460.0,106450.0,0.13200759]
[1760864770343,1.22449851,106460.0,106450.0,0.13200759]
[1760864771201,0.86722841,106460.0,106450.0,0.13200759]
[1760864771562,1.17897242,106460.0,106450.0,0.13200759]
[1760864771768,1.15803552,106460.0,106450.0,0.13200759]
[1760864771971,1.15803552,106460.0,106450.0,0.22672759]
[1760864772583,1.15703552,106460.0,106450.0,0.22672759]
[1760864772835,1.17177006,106460.0,106450.0,0.22672759]
[1760864773040,1.17177006,106460.0,106450.0,0.1200069]
[1760864773486,1.15703552,106460.0,106450.0,0.1200069]
[1760864773914,1.15703552,106460.0,106450.0,0.12181513]
[1760864775455,1.25175552,106460.0,106450.0,0.12181513]
[1760864775677,1.25175552,106460.0,106450.0,0.13399664]
[1760864776034,1.15703552,106460.0,106450.0,0.13399664]
[1760864776247,1.25179552,106460.0,106450.0,0.13399664]
[1760864776449,1.15703552,106460.0,106450.0,0.13399664]
[1760864777538,1.17340738,106460.0,106450.0,0.13399664]
[1760864778619,1.20165763,106460.0,106450.0,0.13399664]
[1760864781565,1.20165763,106460.0,106450.0,0.32187827]
[1760864781797,0.34014952,106460.0,106450.0,0.41663827]
[1760864782000,0.34014952,106460.0,106450.0,0.51104915]
[1760864782200,0.34014952,106460.0,106450.0,0.54723143]
[1760864782805,0.00014952,106460.0,106450.0,0.54723143]
[1760864783217,0.00014952,106460.0,106450.0,0.44723143]
[1760864783757,0.00014952,106460.0,106450.0,0.89546008]
[1760864784166,0.00014952,106460.0,106450.0,0.44723143]
[1760864784377,0.00014952,106460.0,106450.0,0.89546008]
[1760864784717,0.00014952,106460.0,106450.0,0.44723143]
[1760864784897,0.00014952,106460.0,106450.0,0.89546008]
[1760864785105,0.00014952,106460.0,106450.0,1.29546008]
[1760864785313,0.00014952,106460.0,106450.0,1.30546007]
[1760864785527,1e-08,106460.0,106450.0,1.25546006]
[1760864785740,1e-08,106460.0,106450.0,1.38258898]
[1760864785945,1e-08,106460.0,106450.0,1.78749843]
[1760864786148,1e-08,106460.0,106450.0,1.69273843]
[1760864786353,1e-08,106460.0,106450.0,1.68369898]
[1760864791383,1e-08,106460.0,106450.0,1.83099898]
[1760864794329,1e-08,106460.0,106450.0,1.38277033]
[1760864794560,1e-08,106460.0,106450.0,1.82999899]
[1760864794766,1e-08,106460.0,106450.0,1.68269899]
[1760864794978,1e-08,106460.0,106450.0,1.34269899]
[1760864795174,1e-08,106460.0,106450.0,2.11268871]
[1760864795383,1e-08,106460.0,106450.0,1.24937666]
[1760864795594,1e-08,106460.0,106450.0,1.69760531]
[1760864797371,1e-08,106460.0,106450.0,2.14583396]
[1760864797736,1e-08,106460.0,106450.0,1.79649531]
[1760864797956,1e-08,106460.0,106450.0,2.24472396]
[1760864798365,0.00163648,106510.0,106480.0,0.00999999]
[1760864798566,0.00178655,106510.0,106500.0,0.67220435]
[1760864798908,0.00015007,106510.0,106500.0,0.86102165]
[1760864799106,0.00015007,106510.0,106500.0,1.26102165]
[1760864801078,0.00015007,106510.0,106500.0,1.27102164]
[1760864801282,0.00015007,106510.0,106500.0,1.27202164]
[1760864801917,0.00015007,106510.0,106500.0,1.72025029]
[1760864802109,0.00015007,106510.0,106500.0,1.27202164]
[1760864804618,0.00015007,106510.0,106500.0,1.28202163]
[1760864806544,0.00015007,106510.0,106500.0,1.73025028]
[1760864806971,0.00015007,106510.0,106500.0,1.28202163]
[1760864807365,0.00015007,106510.0,106500.0,1.37678163]
[1760864807544,0.00015007,106510.0,106500.0,1.37578163]
[1760864807773,0.00015007,106510.0,106500.0,0.91955299]
[1760864807973,0.00015007,106510.0,106500.0,0.909553]
[1760864808291,0.00015007,106510.0,106500.0,0.907553]
[1760864808515,0.00015007,106510.0,106500.0,0.37661072]
[1760864808715,0.00015007,106510.0,106500.0,0.47337072]
[1760864808936,0.00015007,106510.0,106500.0,0.2855773]
[1760864809081,0.00015007,106510.0,106500.0,0.3789643]
[1760864809285,0.00015007,106510.0,106500.0,0.41514658]
[1760864810042,0.00015007,106510.0,106500.0,0.41314658]
[1760864810469,0.00015007,106510.0,106500.0,0.41414658]
[1760864811630,0.00015007,106510.0,106500.0,0.41314658]
[1760864811836,0.00015007,106510.0,106500.0,0.507553]
[1760864812053,0.00015007,106510.0,106500.0,0.508553]
[1760864812679,0.00015007,106510.0,106500.0,0.508593]
[1760864814029,0.00015007,106510.0,106500.0,0.31979958]
[1760864814235,0.00015007,106510.0,106500.0,0.22539316]
[1760864814995,1.15703607,106510.0,106500.0,0.22639316]
[1760864815480,1.15703607,106510.0,106500.0,0.41418658]
[1760864815870,1.15703607,106510.0,106500.0,0.22639316]
[1760864816268,1.15703607,106510.0,106500.0,0.19021088]
[1760864816435,1.15703607,106510.0,106500.0,0.22704912]
[1760864818563,1.15703607,106510.0,106500.0,0.13224912]
[1760864818766,0.34,106500.0,106490.0,0.13134379]
[1760864818970,0.34,106500.0,106490.0,0.22575467]
[1760864819171,0.34,106500.0,106490.0,0.41356573]
[1760864819378,0.81852249,106500.0,106490.0,0.41356573]
[1760864819571,0.00163649,106500.0,106490.0,0.41356573]
[1760864819825,0.81852249,106500.0,106490.0,0.28773326]
[1760864820050,0.81852249,106500.0,106490.0,0.28873326]